[Event "Early-Titled-Tuesday-Blitz-November-28-2023"]
[Site "Chess.com"]
[Date "2023.11.28"]
[Round "7"]
[White "Arvids_Andrejevs"]
[Black "C_K_G"]
[Result "1/2-1/2"]
[WhiteElo "2357"]
[BlackElo "2177"]
[TimeControl "180+1"]
[EndTime "9:26:20 PST"]
[Termination "Game drawn by repetition"]

1. d4 {[%clk 0:03:00.9]} 1... d5 {[%clk 0:02:54.6]} 2. Bf4 {[%clk 0:03:00.5]}
2... e6 {[%clk 0:02:53.6]} 3. e3 {[%clk 0:03:00.9]} 3... Nf6 {[%clk 0:02:52.5]}
4. Nd2 {[%clk 0:03:00.6]} 4... Bd6 {[%clk 0:02:51]} 5. Ngf3 {[%clk 0:03:01.2]}
5... c5 {[%clk 0:02:41.8]} 6. c3 {[%clk 0:03:00.3]} 6... Nc6 {[%clk 0:02:41.1]}
7. Bd3 {[%clk 0:02:57.5]} 7... c4 {[%clk 0:02:39.7]} 8. Bc2 {[%clk 0:02:57.5]}
8... O-O {[%clk 0:02:38.6]} 9. Ne5 {[%clk 0:02:56.8]} 9... Qc7 {[%clk
0:02:37.6]} 10. Ndf3 {[%clk 0:02:51.7]} 10... b5 {[%clk 0:02:37.3]} 11. Bg3
{[%clk 0:02:47]} 11... a5 {[%clk 0:02:36.3]} 12. Nxc6 {[%clk 0:02:46.3]} 12...
Qxc6 {[%clk 0:02:36]} 13. Bxd6 {[%clk 0:02:43.4]} 13... Qxd6 {[%clk 0:02:35.7]}
14. Ne5 {[%clk 0:02:44.3]} 14... b4 {[%clk 0:02:34]} 15. g4 {[%clk 0:02:43.2]}
15... Bb7 {[%clk 0:02:32.2]} 16. g5 {[%clk 0:02:43.5]} 16... Nd7 {[%clk
0:02:23.1]} 17. f4 {[%clk 0:02:36.1]} 17... Nxe5 {[%clk 0:02:13.4]} 18. fxe5
{[%clk 0:02:31.5]} 18... Qe7 {[%clk 0:02:12.7]} 19. h4 {[%clk 0:02:31.7]} 19...
bxc3 {[%clk 0:02:07.1]} 20. bxc3 {[%clk 0:02:30.1]} 20... Bc6 {[%clk 0:02:07]}
21. Qh5 {[%clk 0:02:21.8]} 21... g6 {[%clk 0:02:05.4]} 22. Qh6 {[%clk
0:02:22.2]} 22... Rfb8 {[%clk 0:02:03.8]} 23. h5 {[%clk 0:02:21.4]} 23... Qf8
{[%clk 0:02:02.8]} 24. hxg6 {[%clk 0:02:17.2]} 24... Qxh6 {[%clk 0:02:02.1]} 25.
gxf7+ {[%clk 0:02:15.3]} 25... Kxf7 {[%clk 0:01:56.7]} 26. Rxh6 {[%clk
0:02:15.9]} 26... Rh8 {[%clk 0:01:29.3]} 27. O-O-O {[%clk 0:01:56.9]} 27... Rag8
{[%clk 0:01:16.1]} 28. Rf1+ {[%clk 0:01:52.7]} 28... Ke7 {[%clk 0:01:15]} 29. g6
{[%clk 0:00:52.5]} 29... hxg6 {[%clk 0:01:11.3]} 30. Rxg6 {[%clk 0:00:53.4]}
30... Rxg6 {[%clk 0:01:00.9]} 31. Bxg6 {[%clk 0:00:54.3]} 31... Rh2 {[%clk
0:00:55.2]} 32. Rf7+ {[%clk 0:00:53]} 32... Kd8 {[%clk 0:00:55]} 33. Ra7 {[%clk
0:00:47.6]} 33... Rxa2 {[%clk 0:00:52.7]} 34. Kb1 {[%clk 0:00:35.2]} 34... Rg2
{[%clk 0:00:40.3]} 35. Bc2 {[%clk 0:00:18.1]} 35... Re2 {[%clk 0:00:28.7]} 36.
Rxa5 {[%clk 0:00:13.8]} 36... Rxe3 {[%clk 0:00:28.4]} 37. Kb2 {[%clk 0:00:13]}
37... Re2 {[%clk 0:00:23.6]} 38. Ra7 {[%clk 0:00:11.8]} 38... Bd7 {[%clk
0:00:22.1]} 39. Kc1 {[%clk 0:00:12.1]} 39... Rh2 {[%clk 0:00:18.5]} 40. Ba4
{[%clk 0:00:09.7]} 40... Bxa4 {[%clk 0:00:14.2]} 41. Rxa4 {[%clk 0:00:10.6]}
41... Ke7 {[%clk 0:00:14]} 42. Ra7+ {[%clk 0:00:10.7]} 42... Kf8 {[%clk
0:00:14.1]} 43. Rc7 {[%clk 0:00:10.5]} 43... Rg2 {[%clk 0:00:12.8]} 44. Kb1
{[%clk 0:00:10.7]} 44... Rh2 {[%clk 0:00:12.7]} 45. Rc6 {[%clk 0:00:10.7]} 45...
Kf7 {[%clk 0:00:12.4]} 46. Rc7+ {[%clk 0:00:11.1]} 46... Kg6 {[%clk 0:00:12.5]}
47. Re7 {[%clk 0:00:11.3]} 47... Kf5 {[%clk 0:00:12.7]} 48. Rf7+ {[%clk
0:00:11.8]} 48... Ke4 {[%clk 0:00:10.3]} 49. Rf6 {[%clk 0:00:12.4]} 49... Kd3
{[%clk 0:00:10.6]} 50. Rf3+ {[%clk 0:00:12.5]} 50... Ke4 {[%clk 0:00:09.7]} 51.
Rg3 {[%clk 0:00:12.4]} 51... Rf2 {[%clk 0:00:08.4]} 52. Kc1 {[%clk 0:00:12]}
52... Rf3 {[%clk 0:00:06.9]} 53. Rg4+ {[%clk 0:00:06.6]} 53... Kd3 {[%clk
0:00:07.1]} 54. Rg6 {[%clk 0:00:05]} 54... Kxc3 {[%clk 0:00:07.2]} 55. Kd1
{[%clk 0:00:05.5]} 55... Kxd4 {[%clk 0:00:07.3]} 56. Rxe6 {[%clk 0:00:06.1]}
56... Re3 {[%clk 0:00:07.4]} 57. Rh6 {[%clk 0:00:04.7]} 57... Rxe5 {[%clk
0:00:08]} 58. Rh4+ {[%clk 0:00:05.6]} 58... Re4 {[%clk 0:00:08.6]} 59. Rh8
{[%clk 0:00:06.5]} 59... Re3 {[%clk 0:00:08.9]} 60. Kd2 {[%clk 0:00:06.6]} 60...
Rd3+ {[%clk 0:00:09]} 61. Kc2 {[%clk 0:00:07.5]} 61... Rg3 {[%clk 0:00:08.6]}
62. Rh4+ {[%clk 0:00:08.4]} 62... Kc5 {[%clk 0:00:08.6]} 63. Rh5 {[%clk
0:00:09.3]} 63... Rg2+ {[%clk 0:00:08.3]} 64. Kc3 {[%clk 0:00:09.3]} 64... Rg3+
{[%clk 0:00:08.9]} 65. Kc2 {[%clk 0:00:09.9]} 65... Kd4 {[%clk 0:00:08.8]} 66.
Rh4+ {[%clk 0:00:09.4]} 66... Kc5 {[%clk 0:00:09.3]} 67. Rh5 {[%clk 0:00:10.3]}
1/2-1/2

[Event "Early-Titled-Tuesday-Blitz-November-28-2023"]
[Site "Chess.com"]
[Date "2023.11.28"]
[Round "7"]
[White "Flawless_Fighter"]
[Black "Vesper2018"]
[Result "1-0"]
[WhiteElo "2806"]
[BlackElo "2612"]
[TimeControl "180+1"]
[EndTime "9:26:25 PST"]
[Termination "Flawless_Fighter won on time"]

1. e4 {[%clk 0:03:00.9]} 1... c5 {[%clk 0:02:59.9]} 2. Nf3 {[%clk 0:03:00.8]}
2... d6 {[%clk 0:02:59.7]} 3. Bb5+ {[%clk 0:03:00.7]} 3... Bd7 {[%clk
0:02:58.5]} 4. Bxd7+ {[%clk 0:03:00.7]} 4... Qxd7 {[%clk 0:02:59]} 5. O-O {[%clk
0:03:01.1]} 5... Nf6 {[%clk 0:02:58.9]} 6. Re1 {[%clk 0:03:01.3]} 6... Nc6
{[%clk 0:02:59.6]} 7. c3 {[%clk 0:03:02]} 7... e6 {[%clk 0:03:00.1]} 8. d4
{[%clk 0:03:02.7]} 8... cxd4 {[%clk 0:03:00.5]} 9. cxd4 {[%clk 0:03:03.6]} 9...
d5 {[%clk 0:03:01.1]} 10. e5 {[%clk 0:03:04.3]} 10... Ne4 {[%clk 0:03:01.5]} 11.
a3 {[%clk 0:03:04.5]} 11... Be7 {[%clk 0:02:57.9]} 12. Nbd2 {[%clk 0:03:04.8]}
12... Nxd2 {[%clk 0:02:57.3]} 13. Bxd2 {[%clk 0:03:05.7]} 13... O-O {[%clk
0:02:57.3]} 14. Re3 {[%clk 0:03:03.6]} 14... f6 {[%clk 0:02:57.1]} 15. exf6
{[%clk 0:03:03.4]} 15... Rxf6 {[%clk 0:02:53.5]} 16. Bc3 {[%clk 0:03:00.9]}
16... Bd6 {[%clk 0:02:45.2]} 17. Qe2 {[%clk 0:03:00.4]} 17... Re8 {[%clk
0:02:41.1]} 18. Re1 {[%clk 0:03:00.4]} 18... Bf4 {[%clk 0:02:36.6]} 19. Rd3
{[%clk 0:02:59.3]} 19... a5 {[%clk 0:02:30.1]} 20. a4 {[%clk 0:02:55.2]} 20...
b6 {[%clk 0:02:28.4]} 21. h3 {[%clk 0:02:53.3]} 21... Bd6 {[%clk 0:02:19]} 22.
b3 {[%clk 0:02:51.4]} 22... Ref8 {[%clk 0:02:10.4]} 23. Re3 {[%clk 0:02:50.8]}
23... Re8 {[%clk 0:02:03.5]} 24. Qb5 {[%clk 0:02:43.9]} 24... Bc7 {[%clk
0:01:52.4]} 25. Bb2 {[%clk 0:02:23.5]} 25... Nb8 {[%clk 0:01:43.4]} 26. Qxd7
{[%clk 0:02:20.7]} 26... Nxd7 {[%clk 0:01:43.7]} 27. Ba3 {[%clk 0:02:17.7]}
27... h6 {[%clk 0:01:37.1]} 28. Rc3 {[%clk 0:02:16.3]} 28... Bf4 {[%clk
0:01:29.5]} 29. g3 {[%clk 0:02:15.7]} 29... Bb8 {[%clk 0:01:27.9]} 30. Kg2
{[%clk 0:02:15.9]} 30... Kf7 {[%clk 0:01:06.5]} 31. h4 {[%clk 0:01:59]} 31... e5
{[%clk 0:01:03.3]} 32. dxe5 {[%clk 0:01:56.4]} 32... Nxe5 {[%clk 0:01:03.5]} 33.
Nxe5+ {[%clk 0:01:52.2]} 33... Rxe5 {[%clk 0:01:01.2]} 34. Rxe5 {[%clk
0:01:48.1]} 34... Bxe5 {[%clk 0:01:01.2]} 35. Rd3 {[%clk 0:01:48.7]} 35... Ke6
{[%clk 0:00:47.3]} 36. f4 {[%clk 0:01:34.6]} 36... Bd6 {[%clk 0:00:47.1]} 37.
Bb2 {[%clk 0:01:30.5]} 37... Rf7 {[%clk 0:00:46.5]} 38. h5 {[%clk 0:01:29.8]}
38... Rc7 {[%clk 0:00:39.6]} 39. Kf3 {[%clk 0:01:27.9]} 39... Rb7 {[%clk
0:00:26.6]} 40. Re3+ {[%clk 0:01:26.3]} 40... Kf7 {[%clk 0:00:26.5]} 41. Rd3
{[%clk 0:01:22.5]} 41... Ke6 {[%clk 0:00:26.7]} 42. g4 {[%clk 0:01:22.5]} 42...
Bc5 {[%clk 0:00:24.8]} 43. f5+ {[%clk 0:01:20.1]} 43... Kd6 {[%clk 0:00:24.8]}
44. Kf4 {[%clk 0:01:20]} 44... Re7 {[%clk 0:00:23.2]} 45. Kf3 {[%clk 0:01:15.6]}
45... Kc6 {[%clk 0:00:15.8]} 46. Bc1 {[%clk 0:01:04.2]} 46... d4 {[%clk
0:00:14.7]} 47. Bf4 {[%clk 0:00:55.1]} 47... Kd5 {[%clk 0:00:14.5]} 48. f6
{[%clk 0:00:55.1]} 48... gxf6 {[%clk 0:00:11.1]} 49. Bxh6 {[%clk 0:00:55.7]}
49... Re1 {[%clk 0:00:05.8]} 50. Kf2 {[%clk 0:00:49.7]} 50... Rh1 {[%clk
0:00:05.4]} 51. Kg2 {[%clk 0:00:44.8]} 51... Rh4 {[%clk 0:00:05.7]} 52. Kg3
{[%clk 0:00:44.2]} 52... Rh1 {[%clk 0:00:06]} 53. Rf3 {[%clk 0:00:43.7]} 53...
Ke4 {[%clk 0:00:03.9]} 54. Rxf6 {[%clk 0:00:38.1]} 54... d3 {[%clk 0:00:04.2]}
55. Re6+ {[%clk 0:00:37.7]} 55... Kd5 {[%clk 0:00:04.4]} 56. Re8 {[%clk
0:00:32.5]} 56... Bd6+ {[%clk 0:00:04.7]} 57. Kg2 {[%clk 0:00:32.9]} 57... Rh2+
{[%clk 0:00:05.2]} 58. Kf3 {[%clk 0:00:29]} 58... d2 {[%clk 0:00:05.2]} 59. Bxd2
{[%clk 0:00:28.3]} 59... Rxd2 {[%clk 0:00:05.2]} 60. h6 {[%clk 0:00:28.8]} 60...
Rh2 {[%clk 0:00:05.1]} 61. g5 {[%clk 0:00:28.6]} 61... Rh1 {[%clk 0:00:01.6]}
62. Kg4 {[%clk 0:00:28]} 62... Rg1+ {[%clk 0:00:01.6]} 63. Kf5 {[%clk
0:00:28.1]} 63... Rf1+ {[%clk 0:00:01.1]} 64. Kg6 {[%clk 0:00:28.5]} 64... Be5
{[%clk 0:00:01.7]} 65. Kh7 {[%clk 0:00:20.5]} 65... Rf7+ {[%clk 0:00:01.3]} 66.
Kg8 {[%clk 0:00:17.6]} 66... Rc7 {[%clk 0:00:01.5]} 67. g6 {[%clk 0:00:17.3]}
67... Rc6 {[%clk 0:00:01.1]} 68. Kh7 {[%clk 0:00:16.4]} 68... Rc7+ {[%clk
0:00:01.3]} 69. g7 {[%clk 0:00:17]} 69... Bf6 {[%clk 0:00:01.3]} 70. Kg6 {[%clk
0:00:14.8]} 1-0

[Event "Early-Titled-Tuesday-Blitz-November-28-2023"]
[Site "Chess.com"]
[Date "2023.11.28"]
[Round "7"]
[White "GKARU"]
[Black "LizardMorrison"]
[Result "1/2-1/2"]
[WhiteElo "2501"]
[BlackElo "2220"]
[TimeControl "180+1"]
[EndTime "9:26:32 PST"]
[Termination "Game drawn by repetition"]

1. d4 {[%clk 0:02:55.3]} 1... d5 {[%clk 0:02:54.6]} 2. Nf3 {[%clk 0:02:54.4]}
2... Nf6 {[%clk 0:02:54.6]} 3. c4 {[%clk 0:02:54.3]} 3... e6 {[%clk 0:02:54.1]}
4. Bg5 {[%clk 0:02:53.2]} 4... Bb4+ {[%clk 0:02:52.2]} 5. Nbd2 {[%clk
0:02:52.3]} 5... h6 {[%clk 0:02:49.4]} 6. Bxf6 {[%clk 0:02:51.9]} 6... Qxf6
{[%clk 0:02:49.6]} 7. Qa4+ {[%clk 0:02:51.8]} 7... Nc6 {[%clk 0:02:49.6]} 8. e3
{[%clk 0:02:50.9]} 8... O-O {[%clk 0:02:46.2]} 9. a3 {[%clk 0:02:50.2]} 9... Bd6
{[%clk 0:02:29.3]} 10. b4 {[%clk 0:02:45.1]} 10... dxc4 {[%clk 0:02:22.4]} 11.
Bxc4 {[%clk 0:02:42]} 11... e5 {[%clk 0:02:22.7]} 12. Ne4 {[%clk 0:01:46.8]}
12... Qg6 {[%clk 0:01:58]} 13. Ng3 {[%clk 0:01:47.2]} 13... exd4 {[%clk
0:01:51]} 14. b5 {[%clk 0:01:47.3]} 14... Ne5 {[%clk 0:01:40.2]} 15. Nxd4 {[%clk
0:01:44.1]} 15... Nd3+ {[%clk 0:01:35.1]} 16. Bxd3 {[%clk 0:01:34.4]} 16... Qxd3
{[%clk 0:01:36]} 17. Qc2 {[%clk 0:01:33.2]} 17... Qxc2 {[%clk 0:01:23.1]} 18.
Nxc2 {[%clk 0:01:34.1]} 18... a6 {[%clk 0:01:23.6]} 19. bxa6 {[%clk 0:01:31.6]}
19... Rxa6 {[%clk 0:01:23.7]} 20. Ke2 {[%clk 0:01:29.6]} 20... Be6 {[%clk
0:01:18.6]} 21. Rhb1 {[%clk 0:01:20.8]} 21... b6 {[%clk 0:01:15.5]} 22. Nb4
{[%clk 0:01:18.6]} 22... Ra4 {[%clk 0:01:12.5]} 23. f4 {[%clk 0:01:15.4]} 23...
Rfa8 {[%clk 0:01:10.1]} 24. Nc2 {[%clk 0:01:15.6]} 24... Bc4+ {[%clk 0:01:08.5]}
25. Kf3 {[%clk 0:01:11.1]} 25... Bd3 {[%clk 0:01:07.9]} 26. Rb2 {[%clk
0:01:09.8]} 26... Bxc2 {[%clk 0:01:06.9]} 27. Rxc2 {[%clk 0:01:10.7]} 27... Rxa3
{[%clk 0:01:07.4]} 28. Rxa3 {[%clk 0:01:10.7]} 28... Rxa3 {[%clk 0:01:08.3]} 29.
Ne4 {[%clk 0:01:09.5]} 29... Rd3 {[%clk 0:00:27.3]} 30. Nxd6 {[%clk 0:01:08.3]}
30... cxd6 {[%clk 0:00:27.7]} 31. Rc6 {[%clk 0:01:04.7]} 31... d5 {[%clk
0:00:24.7]} 32. Rxb6 {[%clk 0:01:04.7]} 32... d4 {[%clk 0:00:25]} 33. Rd6 {[%clk
0:00:49]} 33... Rxe3+ {[%clk 0:00:23.6]} 34. Kf2 {[%clk 0:00:49.4]} 34... Re4
{[%clk 0:00:23.8]} 35. Kf3 {[%clk 0:00:49.6]} 35... Re3+ {[%clk 0:00:24.2]} 36.
Kf2 {[%clk 0:00:49.6]} 36... Re4 {[%clk 0:00:24.6]} 37. g3 {[%clk 0:00:47]}
37... g6 {[%clk 0:00:23.7]} 38. Kf3 {[%clk 0:00:47.3]} 38... Re3+ {[%clk
0:00:23.8]} 39. Kf2 {[%clk 0:00:47.5]} 39... Re4 {[%clk 0:00:24.1]} 40. f5
{[%clk 0:00:47.2]} 40... Kg7 {[%clk 0:00:19.7]} 41. f6+ {[%clk 0:00:44.7]} 41...
Kh7 {[%clk 0:00:19.8]} 42. Rd7 {[%clk 0:00:44.1]} 42... Kg8 {[%clk 0:00:13.1]}
43. Rd8+ {[%clk 0:00:44.2]} 43... Kh7 {[%clk 0:00:13.1]} 44. Rf8 {[%clk
0:00:44.9]} 44... d3 {[%clk 0:00:07.8]} 45. Rxf7+ {[%clk 0:00:45.5]} 45... Kg8
{[%clk 0:00:08]} 46. Rd7 {[%clk 0:00:43.4]} 46... Re5 {[%clk 0:00:06.1]} 47. f7+
{[%clk 0:00:41]} 47... Kf8 {[%clk 0:00:06]} 48. g4 {[%clk 0:00:40.9]} 48... Re7
{[%clk 0:00:04]} 49. Rxd3 {[%clk 0:00:41.2]} 49... Rxf7+ {[%clk 0:00:04.3]} 50.
Kg3 {[%clk 0:00:41.6]} 50... Kg7 {[%clk 0:00:04.6]} 51. h4 {[%clk 0:00:40.8]}
51... Ra7 {[%clk 0:00:05.1]} 52. Rb3 {[%clk 0:00:39.4]} 52... Rc7 {[%clk
0:00:05.1]} 53. Rb4 {[%clk 0:00:37.6]} 53... Rf7 {[%clk 0:00:05.5]} 54. Ra4
{[%clk 0:00:36.7]} 54... Re7 {[%clk 0:00:06]} 55. Kf4 {[%clk 0:00:37]} 55...
Rf7+ {[%clk 0:00:06.4]} 56. Ke5 {[%clk 0:00:37.1]} 56... Re7+ {[%clk 0:00:07.1]}
57. Kf4 {[%clk 0:00:36]} 57... Rf7+ {[%clk 0:00:07.6]} 58. Kg3 {[%clk
0:00:35.8]} 58... Re7 {[%clk 0:00:08.1]} 59. Rc4 {[%clk 0:00:35.8]} 59... Rf7
{[%clk 0:00:08.5]} 60. Rc6 {[%clk 0:00:35.6]} 60... Re7 {[%clk 0:00:08.9]} 61.
Kf4 {[%clk 0:00:33.2]} 61... Rf7+ {[%clk 0:00:09.2]} 62. Ke5 {[%clk 0:00:33.6]}
62... Re7+ {[%clk 0:00:09.4]} 63. Re6 {[%clk 0:00:34.3]} 63... Ra7 {[%clk
0:00:09.6]} 64. Rd6 {[%clk 0:00:21.3]} 64... Re7+ {[%clk 0:00:09.1]} 65. Kf4
{[%clk 0:00:15.8]} 65... Rf7+ {[%clk 0:00:09.2]} 66. Kg3 {[%clk 0:00:16.5]}
66... Re7 {[%clk 0:00:09.3]} 67. h5 {[%clk 0:00:15.3]} 67... gxh5 {[%clk
0:00:09.2]} 68. gxh5 {[%clk 0:00:16.2]} 68... Re5 {[%clk 0:00:09.1]} 69. Kh4
{[%clk 0:00:14.9]} 69... Re4+ {[%clk 0:00:08.8]} 70. Kh3 {[%clk 0:00:15]} 70...
Re5 {[%clk 0:00:09.1]} 71. Rg6+ {[%clk 0:00:14.5]} 71... Kh7 {[%clk 0:00:08.8]}
72. Kg4 {[%clk 0:00:14.6]} 72... Re1 {[%clk 0:00:06.3]} 73. Ra6 {[%clk 0:00:13]}
73... Rg1+ {[%clk 0:00:06]} 74. Kh4 {[%clk 0:00:10]} 74... Rh1+ {[%clk
0:00:05.9]} 75. Kg4 {[%clk 0:00:10.7]} 75... Rg1+ {[%clk 0:00:06.4]} 76. Kh4
{[%clk 0:00:11.3]} 76... Rh1+ {[%clk 0:00:07]} 77. Kg4 {[%clk 0:00:12]} 77...
Rg1+ {[%clk 0:00:07.6]} 1/2-1/2

[Event "Early-Titled-Tuesday-Blitz-November-28-2023"]
[Site "Chess.com"]
[Date "2023.11.28"]
[Round "7"]
[White "Fonsofan"]
[Black "Krakozia"]
[Result "1-0"]
[WhiteElo "2762"]
[BlackElo "2946"]
[TimeControl "180+1"]
[EndTime "9:26:44 PST"]
[Termination "Fonsofan won on time"]

1. e4 {[%clk 0:03:00.9]} 1... c5 {[%clk 0:02:59.4]} 2. Nf3 {[%clk 0:02:59.9]}
2... e6 {[%clk 0:02:59.3]} 3. d3 {[%clk 0:02:53.7]} 3... Nc6 {[%clk 0:02:58.3]}
4. g3 {[%clk 0:02:53.4]} 4... d5 {[%clk 0:02:56.7]} 5. Nbd2 {[%clk 0:02:52.7]}
5... Bd6 {[%clk 0:02:55.9]} 6. Bg2 {[%clk 0:02:52.6]} 6... Nge7 {[%clk
0:02:55.9]} 7. O-O {[%clk 0:02:52.5]} 7... O-O {[%clk 0:02:56]} 8. c3 {[%clk
0:02:52.4]} 8... Bc7 {[%clk 0:02:52.9]} 9. Re1 {[%clk 0:02:52.4]} 9... b5 {[%clk
0:02:48.1]} 10. Nf1 {[%clk 0:02:41.8]} 10... dxe4 {[%clk 0:02:41.2]} 11. dxe4
{[%clk 0:02:40]} 11... Qxd1 {[%clk 0:02:40.8]} 12. Rxd1 {[%clk 0:02:40.9]} 12...
Ng6 {[%clk 0:02:38.8]} 13. Be3 {[%clk 0:02:33.4]} 13... Bb6 {[%clk 0:02:38.7]}
14. a4 {[%clk 0:02:30.5]} 14... bxa4 {[%clk 0:02:37.1]} 15. N1d2 {[%clk
0:02:26.7]} 15... Nge5 {[%clk 0:02:31.4]} 16. Nxe5 {[%clk 0:02:13.1]} 16... Nxe5
{[%clk 0:02:32.3]} 17. Bf4 {[%clk 0:02:09.1]} 17... Nd3 {[%clk 0:02:30.9]} 18.
Bd6 {[%clk 0:02:01.7]} 18... Rd8 {[%clk 0:02:10.2]} 19. e5 {[%clk 0:01:57.9]}
19... Ba6 {[%clk 0:02:10.6]} 20. Bxa8 {[%clk 0:01:45.5]} 20... Rxa8 {[%clk
0:02:11.5]} 21. Ne4 {[%clk 0:01:44.4]} 21... Bb5 {[%clk 0:01:53.9]} 22. Rxd3
{[%clk 0:01:32]} 22... Bxd3 {[%clk 0:01:53.6]} 23. Nxc5 {[%clk 0:01:32.6]} 23...
Bxc5 {[%clk 0:01:47.6]} 24. Bxc5 {[%clk 0:01:33.5]} 24... Rb8 {[%clk 0:01:46.1]}
25. Rd1 {[%clk 0:01:29.6]} 25... Be2 {[%clk 0:01:27.5]} 26. Rd2 {[%clk
0:01:18.4]} 26... Bf3 {[%clk 0:01:28.1]} 27. Rd3 {[%clk 0:01:18.4]} 27... Bd5
{[%clk 0:01:24.8]} 28. f4 {[%clk 0:01:11.1]} 28... h5 {[%clk 0:01:21.3]} 29. Rd2
{[%clk 0:00:56.2]} 29... a6 {[%clk 0:01:21.1]} 30. Kf2 {[%clk 0:00:56.4]} 30...
Kh7 {[%clk 0:01:20.3]} 31. Ke3 {[%clk 0:00:56.4]} 31... Kg6 {[%clk 0:01:21]} 32.
Kd4 {[%clk 0:00:54.7]} 32... Kf5 {[%clk 0:01:19.4]} 33. c4 {[%clk 0:00:49.3]}
33... Bc6 {[%clk 0:01:18.7]} 34. Bd6 {[%clk 0:00:48.2]} 34... Rb3 {[%clk
0:01:18.1]} 35. Bf8 {[%clk 0:00:42.7]} 35... g6 {[%clk 0:01:13.1]} 36. Kc5
{[%clk 0:00:29.5]} 36... Bf3 {[%clk 0:01:07.7]} 37. Be7 {[%clk 0:00:28.3]} 37...
Ke4 {[%clk 0:01:04.2]} 38. Kd6 {[%clk 0:00:07.8]} 38... Ke3 {[%clk 0:01:01.1]}
39. Rc2 {[%clk 0:00:08.1]} 39... Be4 {[%clk 0:00:58.3]} 40. Rc1 {[%clk
0:00:08.2]} 40... Rxb2 {[%clk 0:00:55.8]} 41. Ra1 {[%clk 0:00:08.2]} 41... Rd2+
{[%clk 0:00:47.7]} 42. Kc7 {[%clk 0:00:06.2]} 42... Bc2 {[%clk 0:00:41.7]} 43.
c5 {[%clk 0:00:05.6]} 43... Bb3 {[%clk 0:00:41.6]} 44. c6 {[%clk 0:00:04.9]}
44... Rc2 {[%clk 0:00:35.7]} 45. Kb6 {[%clk 0:00:03.9]} 45... Bd5 {[%clk
0:00:33.7]} 46. c7 {[%clk 0:00:03.6]} 46... Rc6+ {[%clk 0:00:33]} 47. Kb7 {[%clk
0:00:02]} 47... Rc3+ {[%clk 0:00:27]} 48. Kb8 {[%clk 0:00:02.1]} 48... Rb3+
{[%clk 0:00:26.4]} 49. Kc8 {[%clk 0:00:02.1]} 49... Bb7+ {[%clk 0:00:25.4]} 50.
Kd8 {[%clk 0:00:01.9]} 50... Rd3+ {[%clk 0:00:24.1]} 51. Bd6 {[%clk 0:00:01.8]}
51... a3 {[%clk 0:00:24.3]} 52. Rxa3 {[%clk 0:00:01.8]} 52... Rxa3 {[%clk
0:00:23.7]} 53. Bxa3 {[%clk 0:00:02.7]} 53... a5 {[%clk 0:00:23.3]} 54. c8=Q
{[%clk 0:00:02.5]} 54... Bxc8 {[%clk 0:00:23.3]} 55. Kxc8 {[%clk 0:00:03.4]}
55... Kf3 {[%clk 0:00:23.7]} 56. Kd7 {[%clk 0:00:04.1]} 56... Kg2 {[%clk
0:00:24.3]} 57. Ke7 {[%clk 0:00:04.6]} 57... Kxh2 {[%clk 0:00:24.8]} 58. Kxf7
{[%clk 0:00:05.3]} 58... Kxg3 {[%clk 0:00:25.1]} 59. Kxe6 {[%clk 0:00:05.9]}
59... h4 {[%clk 0:00:25.4]} 60. Kf6 {[%clk 0:00:05.3]} 60... h3 {[%clk
0:00:25.4]} 61. e6 {[%clk 0:00:04.1]} 61... h2 {[%clk 0:00:25.7]} 62. e7 {[%clk
0:00:04.8]} 62... h1=Q {[%clk 0:00:26.4]} 63. e8=Q {[%clk 0:00:05.2]} 63... Qa1+
{[%clk 0:00:26.9]} 64. Kxg6 {[%clk 0:00:02.6]} 64... Qxa3 {[%clk 0:00:25.9]} 65.
f5 {[%clk 0:00:02.6]} 65... a4 {[%clk 0:00:23]} 66. f6 {[%clk 0:00:02.5]} 66...
Qd3+ {[%clk 0:00:23.1]} 67. Kg7 {[%clk 0:00:02.7]} 67... Qd4 {[%clk 0:00:22.6]}
68. Qg6+ {[%clk 0:00:03.2]} 68... Kf4 {[%clk 0:00:21.2]} 69. Kh7 {[%clk
0:00:03.1]} 69... a3 {[%clk 0:00:14.2]} 70. f7 {[%clk 0:00:03.6]} 70... Qd7
{[%clk 0:00:11.5]} 71. Kh8 {[%clk 0:00:02.8]} 71... Qd4+ {[%clk 0:00:09]} 72.
Qg7 {[%clk 0:00:02]} 72... Qb2 {[%clk 0:00:01.2]} 73. f8=Q+ {[%clk 0:00:02.9]}
73... Ke4 {[%clk 0:00:01.2]} 74. Qxb2 {[%clk 0:00:01.4]} 1-0